bitfinex/quotes_ETHUSD_20220731
["timestamp","ask_amount","ask_price","bid_price","bid_amount"]
[1659292349979,0.04999999,1692.4,1691.8,0.24471435]
[1659292350163,0.10366032,1692.5,1692.2,0.05]
[1659292350364,0.10366032,1692.5,1692.4,2.74916613]
[1659292350365,6.032e-05,1692.5,1692.4,2.74916613]
[1659292350583,8.6643453,1695.1,1693.2,2.72825633]
[1659292350785,11.805,1695.0,1693.7,0.05]
[1659292351011,11.755,1695.0,1693.9,0.05]
[1659292351319,11.755,1695.0,1694.0,0.05]
[1659292351518,11.755,1695.0,1694.0,0.87105364]
[1659292351801,5.38857541,1695.0,1694.3,3.15083144]
[1659292351967,5.38857541,1695.0,1694.4,2.27733522]
[1659292352167,5.41340975,1695.0,1694.4,1.06321799]
[1659292352366,0.82141493,1694.3,1693.5,2.59592534]
[1659292352601,6.80228493,1694.3,1693.6,0.24471435]
[1659292352801,0.84414493,1694.3,1693.6,0.24471435]
[1659292352994,0.84414493,1694.3,1693.7,0.71080343]
[1659292353206,0.05,1694.4,1693.9,8.0]
[1659292353428,0.05,1694.6,1694.0,3.0]
[1659292353580,0.05,1694.7,1694.0,0.71080343]
[1659292353784,0.05,1694.8,1693.9,0.05]
[1659292354001,5.40684871,1695.0,1693.9,0.05]
[1659292354323,5.40684871,1695.0,1694.0,0.05]
[1659292354615,5.40684871,1695.0,1694.4,11.0]
[1659292354616,1.97315815,1695.0,1694.4,11.0]
[1659292354834,8.01100616,1696.4,1694.6,11.5]
[1659292354980,0.2,1695.8,1695.0,0.05]
[1659292355178,0.12483434,1695.7,1694.9,0.05]
[1659292355414,12.859,1696.6,1694.7,0.75943847]
[1659292355415,2.99998476,1697.2,1695.0,2.8495191]
[1659292355582,11.942,1697.1,1695.6,0.1]
[1659292355780,8.0,1696.6,1696.0,0.05]
[1659292355978,8.12483434,1696.6,1695.3,0.3]
[1659292356179,0.15,1696.1,1695.1,1.02958319]
[1659292356421,0.05,1696.0,1695.7,0.05]
[1659292356632,11.792,1697.1,1695.2,2.82926314]
[1659292356633,0.05,1696.3,1695.8,0.24471435]
[1659292356781,11.792,1697.1,1695.6,2.79534472]
[1659292356782,0.05,1696.5,1696.4,6.55]
[1659292356983,0.3,1698.0,1697.0,0.05]
[1659292357595,0.15,1697.1,1695.7,0.3]
[1659292357797,0.15,1697.7,1696.2,0.05]
[1659292358032,0.2,1697.9,1696.5,8.0]
[1659292358213,0.3,1698.0,1696.7,0.2]
[1659292358384,0.3,1698.0,1696.6,3.0]
[1659292358385,0.3,1698.0,1696.5,3.0]
[1659292358729,0.3,1698.0,1697.2,0.2]
[1659292359029,0.3,1698.0,1697.3,0.24471435]
[1659292359182,0.25,1698.0,1697.0,0.07516566]
[1659292359379,0.25,1698.0,1697.5,0.07516566]
[1659292359579,0.25,1698.0,1697.0,3.0]
[1659292359580,0.25,1698.0,1697.8,0.07516566]
[1659292360233,0.2,1698.0,1697.5,0.02516566]
[1659292360732,0.2,1698.0,1697.9,1.25416566]
[1659292360879,0.2,1698.0,1697.9,1.45416566]
[1659292361080,0.2,1698.0,1697.9,1.229]
[1659292361323,0.2,1698.0,1697.5,0.05]
[1659292361530,9.37483434,1698.4,1697.3,0.05]
[1659292361718,0.5784,1698.8,1697.8,0.2]
[1659292361881,11.776,1698.7,1697.8,0.05]
[1659292362089,3.5,1698.6,1697.8,0.05]
[1659292362292,21.15083434,1698.7,1697.7,0.05]
[1659292362489,21.15083434,1698.7,1697.0,2.86654191]
[1659292362490,0.0775813,1698.0,1697.0,2.86654191]
[1659292362742,6.95,1697.1,1696.4,0.294375]
[1659292362939,6.7,1697.1,1696.4,0.294375]
[1659292363093,0.2,1697.0,1696.1,1.12516566]
[1659292363292,2.00662156,1695.8,1694.8,0.29458]
[1659292363490,0.05,1695.7,1695.3,1.12516566]
[1659292363731,0.05,1695.9,1694.6,3.5]
[1659292363902,0.05,1695.7,1694.5,2.64855832]
[1659292364107,1.89406642,1696.1,1694.6,2.87511409]
[1659292364315,1.89406642,1696.1,1694.6,2.84937409]
[1659292364516,0.2,1695.9,1694.6,0.02426]
[1659292364741,12.859,1696.7,1694.4,2.69696028]
[1659292364897,17.884,1696.6,1695.3,2.60329088]
[1659292365097,17.884,1696.6,1695.7,1.07516566]
[1659292365098,0.2,1696.5,1695.7,1.07516566]
[1659292365293,11.996,1696.6,1694.5,1.0]
[1659292365294,11.796,1696.6,1696.3,1.07516566]
[1659292365492,11.796,1696.6,1695.3,7.0]
[1659292365493,11.796,1696.6,1695.6,1.07516566]
[1659292365733,11.796,1696.6,1695.3,2.59433655]
[1659292365892,11.796,1696.6,1695.7,1.07516566]
[1659292366093,11.796,1696.6,1695.7,1.37516566]
[1659292366413,9.6245,1696.6,1696.5,1.37516566]
[1659292366597,0.07936674,1698.7,1696.5,16.51988001]
[1659292366804,0.07936674,1698.7,1697.6,8.0]
[1659292367107,0.32954317,1700.7,1697.8,0.57318838]
[1659292367305,0.2,1700.1,1698.0,2.95802199]
[1659292367637,0.2,1699.7,1698.1,3.0]
[1659292367845,0.2,1700.1,1697.6,0.55789221]
[1659292367846,0.2,1699.1,1697.6,0.55789221]
[1659292368043,0.2,1698.1,1697.6,0.55789221]
[1659292368384,12.859,1699.2,1696.2,1.07516566]
[1659292368385,0.04247796,1696.6,1696.2,1.07516566]
[1659292368501,0.04247796,1696.6,1695.5,5.76362]
[1659292368502,0.4,1697.9,1695.5,2.8188]
[1659292368706,0.30045228,1699.1,1695.6,7.2945755]
[1659292368707,1.89932571,1697.0,1695.6,7.2945755]
[1659292369023,1.89932571,1697.0,1695.6,0.2945755]
[1659292369330,0.2,1696.8,1695.6,0.2945755]
[1659292369549,1.95760764,1696.6,1695.6,0.2945755]
[1659292369705,19.9889,1698.3,1695.6,1.2945755]
[1659292369706,20.1889,1698.3,1695.6,1.2945755]
[1659292369908,0.2,1699.0,1695.8,1.47256]
[1659292370145,1.01596179,1697.9,1696.5,2.87684317]
[1659292370350,21.06535185,1699.1,1695.6,3.2393855]
[1659292370351,0.05,1697.7,1696.4,4.18548249]
[1659292370498,1.01527302,1697.6,1697.3,0.04490937]
[1659292370698,0.05,1697.9,1697.3,0.04490937]
[1659292370898,0.99901388,1697.9,1697.3,0.04490937]
[1659292371098,0.05,1698.0,1696.4,0.2944632]
[1659292371099,0.05,1698.0,1696.9,2.78800009]
[1659292371339,0.43293087,1699.1,1697.2,8.0]
[1659292371537,11.778,1699.0,1697.8,2.78597455]
[1659292371755,11.778,1699.0,1697.9,3.3]
[1659292371951,1.04350232,1698.8,1697.9,0.3]
[1659292372101,1.04317495,1699.2,1698.0,1.07516566]
[1659292372298,6.94317495,1699.2,1698.0,8.3]
[1659292372548,0.65325188,1699.6,1699.1,1.07516566]
[1659292372549,0.43293087,1699.6,1699.1,1.07516566]
[1659292372717,1.68596226,1698.5,1698.4,5.7788127]
[1659292372899,1.32149782,1699.9,1698.6,8.0]
[1659292373101,0.88856695,1699.9,1698.7,3.3]
[1659292373303,3.5,1699.4,1698.7,3.0]
[1659292373537,0.2,1699.8,1698.3,0.84512047]
[1659292373538,3.5,1699.5,1698.3,0.84512047]
[1659292373735,0.2,1699.7,1697.7,0.2942408]
[1659292373979,0.88224026,1698.7,1697.2,2.79631689]
[1659292374184,0.05,1698.4,1696.9,1.0]
[1659292374475,18.5,1699.3,1697.1,0.1]
[1659292374476,0.05,1698.1,1697.1,0.1]
[1659292374636,0.1,1697.6,1696.3,2.70716085]
[1659292374836,0.05,1697.4,1696.1,0.2945142]
[1659292375163,0.05,1697.2,1696.5,0.1]
[1659292375367,0.05,1697.2,1695.9,1.47258]
[1659292375368,0.1,1697.7,1696.6,0.34471435]
[1659292375676,3.5,1698.3,1696.7,0.05]
[1659292375677,0.1,1698.3,1696.7,0.05]
[1659292375832,11.722,1698.2,1697.0,2.8954287]
[1659292376034,11.722,1698.2,1697.2,0.1]
[1659292376232,11.722,1698.2,1697.6,0.1]
[1659292376478,11.722,1698.2,1698.1,0.1]
[1659292376833,0.90337718,1699.3,1698.2,4.5]
[1659292377033,0.04267726,1699.5,1697.9,2.97460645]
[1659292377034,11.773,1699.2,1698.5,0.1]
[1659292377261,11.773,1699.2,1698.6,0.1]
[1659292377459,5.88878264,1699.2,1698.8,0.1]
[1659292377658,5.88878264,1699.2,1698.8,0.09389785]
[1659292377886,5.88878264,1699.2,1698.5,0.05]
[1659292378044,5.88878264,1699.2,1699.1,0.09389785]
[1659292378243,0.04267726,1699.5,1699.4,0.09389785]
[1659292378446,0.04267726,1699.5,1699.2,5.888]
[1659292378447,1.1388097,1700.9,1700.5,0.09389785]
[1659292378688,0.0008097,1700.9,1700.8,0.09389785]
[1659292378891,0.65325188,1701.7,1701.6,0.09389785]
[1659292378892,0.43293087,1701.7,1701.6,0.09389785]
[1659292379045,0.90688501,1702.1,1701.5,0.09389785]
[1659292379046,1.29482757,1702.1,1701.5,0.09389785]
[1659292379243,0.44945985,1702.1,1701.6,0.09389785]
[1659292379481,1.1331362,1702.8,1701.0,1.46831]
[1659292379482,0.1465225,1702.9,1701.8,8.0]
[1659292379682,0.67442158,1702.8,1701.8,8.0]
[1659292379859,0.67442158,1702.8,1701.8,5.94568093]
[1659292380054,0.67442158,1702.6,1701.9,3.6]
[1659292380263,0.62442158,1702.5,1702.0,0.64471435]
[1659292380469,1.51008633,1703.3,1702.2,2.79666687]
[1659292380667,1.88342201,1703.8,1702.8,2.8695471]
[1659292381020,0.3,1704.0,1702.9,3.3]
[1659292381348,0.3,1704.0,1703.0,3.0]
[1659292381349,0.84198207,1703.7,1703.0,3.0]
[1659292381648,0.84198207,1703.7,1702.3,3.3]
[1659292381649,5.26259306,1702.8,1702.3,3.3]
[1659292381817,5.26259306,1702.8,1701.7,0.6]
[1659292381818,5.21259306,1702.8,1701.7,0.6]
[1659292382004,0.14910215,1702.5,1701.5,0.2935777]
[1659292382203,0.05,1702.7,1701.5,0.05]
[1659292382204,8.05,1702.4,1701.5,0.05]
[1659292382434,8.05,1702.4,1701.6,0.05089785]
[1659292382435,0.05,1702.4,1701.6,0.05089785]
[1659292382604,5.21259306,1702.8,1702.3,8.63989785]
[1659292382808,5.21259306,1702.8,1702.1,0.05]
[1659292383017,5.21259306,1702.8,1701.5,2.75844124]
[1659292383244,5.21259306,1702.8,1701.2,5.86927]
[1659292383408,5.21259306,1702.8,1701.8,1.6]
[1659292383607,5.21259306,1702.8,1702.1,3.5]
[1659292383608,4.97786397,1702.8,1702.1,3.5]
[1659292383805,4.97786397,1702.8,1702.2,3.65277578]
[1659292384046,4.82786397,1702.8,1702.2,3.95277578]
[1659292384207,4.82786397,1702.8,1702.3,3.0]
[1659292384534,4.82786397,1702.8,1701.6,2.83752652]
[1659292384535,3.5,1702.4,1701.6,2.83752652]
[1659292384756,0.05,1702.4,1701.7,0.35277815]
[1659292384964,0.05,1702.4,1701.7,0.0080638]
[1659292385270,0.05,1702.5,1701.7,0.0080638]
[1659292385420,4.76371193,1702.8,1702.0,8.0]
[1659292385620,4.71371193,1702.8,1702.1,0.00806191]
[1659292386076,0.5,1704.0,1702.1,0.00806191]
[1659292386077,0.3,1704.0,1702.5,8.0]
[1659292386220,0.3,1704.0,1702.8,0.05]
[1659292386421,0.3,1704.0,1702.9,0.05]
[1659292386622,0.90990187,1703.3,1703.0,0.05]
[1659292386874,3.5,1703.5,1702.7,0.05]
[1659292387076,3.45,1703.1,1702.6,0.05]
[1659292387237,3.45,1703.1,1701.4,6.16244]
[1659292387238,3.5,1702.8,1702.4,0.05]
[1659292387437,1.32363493,1703.3,1702.1,0.05]
[1659292387749,3.96962436,1704.2,1702.8,0.0524609]
[1659292387750,3.5,1703.8,1702.8,0.0524609]
[1659292387953,3.5,1703.6,1702.8,0.1024609]
[1659292388121,0.2,1703.1,1702.8,0.0024609]
[1659292388323,0.98996333,1703.2,1702.8,0.0024609]
[1659292388752,0.98996333,1703.2,1703.0,0.05188646]
[1659292388753,0.03118501,1703.2,1703.0,0.05188646]
[1659292390564,0.03118501,1703.2,1702.6,0.05]
[1659292390565,3.5,1703.1,1702.6,0.05]
[1659292390775,0.2,1702.8,1702.4,0.05]
[1659292390957,0.2,1703.0,1702.1,0.05]
[1659292390958,0.2,1702.6,1702.1,0.05]
[1659292391272,0.4,1702.0,1700.6,1.46872]
[1659292391486,0.4,1702.0,1700.5,0.00564214]
[1659292391487,0.05,1701.7,1700.5,0.00564214]
[1659292391621,1.15233308,1702.0,1699.6,24.45596]
[1659292391622,3.5,1701.1,1700.0,0.2938765]
[1659292391822,0.97197919,1700.7,1699.5,2.94118654]
[1659292392084,0.24435786,1701.0,1700.0,8.0]
[1659292392085,3.5,1701.0,1700.0,8.0]
[1659292392319,3.5,1701.0,1699.8,2.67078495]
[1659292392596,3.0,1701.7,1699.1,1.47001]
[1659292392597,0.294,1701.9,1700.5,2.76704505]
[1659292392814,0.294,1701.9,1699.5,1.46971]
[1659292392815,0.98895816,1702.0,1700.6,0.00564214]
[1659292393087,0.19435786,1701.3,1700.1,0.2938722]
[1659292393299,0.92022552,1701.3,1700.1,0.2938722]
[1659292393445,3.5,1700.8,1699.8,0.00564214]
[1659292393645,3.5,1700.8,1699.5,0.2939686]
[1659292393895,3.5,1700.5,1699.4,2.71154635]
[1659292394065,4.64057053,1700.7,1698.9,1.47024]
[1659292394264,0.94057053,1700.7,1699.3,0.05]
[1659292394455,0.94057053,1700.7,1699.1,2.77967738]
[1659292394456,8.0,1700.6,1699.1,2.67967738]
[1659292394651,8.0,1700.6,1699.2,0.294034]
[1659292394851,11.5,1700.6,1699.2,0.294034]
[1659292395155,11.7,1700.6,1699.2,0.294034]
[1659292395349,0.2,1700.3,1699.2,0.294034]
[1659292395716,0.05,1700.2,1699.2,1.764034]
[1659292396054,0.05,1700.2,1699.4,2.61647662]
[1659292396183,1.07791582,1701.3,1699.5,0.34471435]
[1659292396184,0.05,1700.3,1699.5,0.34471435]
[1659292396410,0.05,1700.4,1699.5,9.31453435]
[1659292396581,0.05,1700.4,1699.5,1.81453435]
[1659292396770,0.05,1700.4,1698.6,8.81758]
[1659292396771,0.05,1700.4,1698.6,1.4700707]
[1659292396970,0.05,1699.9,1698.9,2.76899926]
[1659292397291,0.193,1699.8,1698.9,2.76899926]
[1659292397496,0.193,1699.8,1698.0,0.3]
[1659292397497,0.193,1699.4,1698.0,0.3]
[1659292397688,3.5,1700.0,1698.4,2.79537095]
[1659292397689,0.05,1699.2,1698.4,2.79537095]
[1659292397889,0.193,1699.7,1698.5,5.29471435]
[1659292398091,0.193,1699.5,1698.5,5.29471435]
[1659292398293,0.393,1698.1,1698.0,0.3]
[1659292398478,6.5,1698.0,1697.1,2.62701032]
[1659292398801,0.193,1697.9,1697.3,0.10642911]
[1659292398968,0.193,1697.9,1696.7,0.2944826]
[1659292398969,0.193,1697.2,1696.7,0.2944826]
[1659292399172,0.193,1697.2,1696.4,2.68973202]
[1659292399374,0.193,1697.2,1695.9,0.29454]
[1659292399375,0.193,1697.2,1696.3,0.2945564]
[1659292399675,0.193,1696.7,1695.7,1.47316]
[1659292399933,0.05,1696.7,1696.0,0.007]
[1659292400282,4.193,1697.5,1696.1,0.00436141]
[1659292400283,0.393,1697.4,1696.1,0.00436141]
[1659292400557,17.138,1697.9,1696.1,0.00436141]
[1659292400558,3.45,1697.7,1696.1,0.00436141]
[1659292400759,11.2,1697.9,1696.1,0.00436141]
[1659292400760,0.193,1696.8,1696.1,0.00436141]
[1659292401130,0.193,1695.9,1694.9,7.366463]
[1659292401334,10.95,1696.2,1694.7,0.007]
[1659292401335,0.34907576,1695.8,1694.7,0.007]
[1659292401549,0.34907576,1695.8,1694.9,0.05]
[1659292402563,2.69694439,1695.7,1694.9,0.05]
[1659292402767,0.00436141,1695.6,1694.9,0.05]
[1659292403066,5.0,1695.1,1694.8,0.05]
[1659292403269,0.05,1695.5,1694.7,0.007]
[1659292403762,0.193,1695.2,1694.6,0.05]
[1659292403921,2.76490833,1695.3,1694.4,0.10098]
[1659292404122,0.243,1695.3,1694.4,0.09398]
[1659292404356,0.193,1695.0,1694.4,0.09398]
[1659292404516,5.0,1694.9,1693.8,0.39377]
[1659292404716,0.05,1694.8,1693.8,0.38677]
[1659292404955,0.05,1694.7,1694.5,0.007]
[1659292405121,0.05,1695.0,1694.7,0.007]
[1659292405331,0.05,1695.3,1695.0,0.007]
[1659292405533,0.08584618,1695.6,1695.2,0.007]
[1659292405746,0.08584618,1695.6,1694.7,0.05]
[1659292405747,0.00084618,1695.6,1695.3,0.4409]
[1659292405932,3.5,1697.0,1696.3,0.007]
[1659292406150,13.63190731,1697.5,1696.3,0.007]
[1659292406318,13.63190731,1697.5,1695.4,8.0]
[1659292406319,0.193,1697.2,1696.4,0.05]
[1659292406517,0.78947576,1697.1,1696.3,0.107]
[1659292406821,3.5,1696.4,1694.5,6.18984877]
[1659292407024,0.05,1695.9,1694.9,0.17598436]
[1659292407262,0.2405,1696.9,1695.8,0.2]
[1659292407492,0.2405,1696.9,1696.0,0.2]
[1659292407781,0.4403,1697.4,1696.3,0.2]
[1659292407934,0.4403,1697.4,1696.9,0.2]
[1659292408136,0.34907576,1697.5,1696.8,0.2]
[1659292408395,11.0063,1697.8,1695.9,10.9407]
[1659292408396,3.1521556,1698.2,1697.3,0.2]
[1659292408740,3.5,1697.6,1697.3,0.05]
[1659292408951,0.4403,1697.5,1697.3,0.05]
[1659292409181,3.5,1698.8,1697.5,0.15]
[1659292409336,6.26888632,1698.3,1697.7,0.15]
[1659292409535,0.41523576,1698.2,1697.5,0.2]
[1659292409779,0.4401,1698.1,1697.4,0.05]
[1659292409951,0.4401,1698.1,1697.3,0.05]
[1659292410158,0.4401,1698.1,1696.5,9.94431]
[1659292410159,0.05,1698.1,1697.4,0.15]
[1659292410368,0.05,1698.1,1697.2,0.05]
[1659292410369,0.05,1698.1,1697.6,0.15]
[1659292410577,0.06616,1698.2,1697.6,3.0]
[1659292410775,0.06616,1698.2,1697.4,0.05]
[1659292410776,0.05,1698.1,1697.4,0.05]
[1659292410958,2.73283686,1698.0,1697.4,0.15]
[1659292411175,0.05,1698.1,1697.2,0.05]
[1659292411382,0.03308,1698.0,1697.2,0.05]
[1659292411590,3.5,1697.3,1697.1,0.05]
[1659292411742,3.5,1697.3,1696.3,0.41222]
[1659292411743,0.03308,1697.2,1696.7,0.05]
[1659292412081,0.03308,1697.2,1696.5,0.2]
[1659292412386,0.34907576,1697.1,1696.4,0.05]
[1659292412550,2.64953191,1696.7,1696.3,0.05]
[1659292412749,0.04135,1696.4,1696.2,0.15]
[1659292412958,0.04135,1696.4,1694.8,1.65256629]
[1659292412959,0.04135,1696.4,1695.8,0.05]
[1659292413181,0.2,1695.9,1694.5,0.58936]
[1659292413359,4.6132182,1695.6,1694.1,2.94828]
[1659292413568,4.6132182,1695.6,1693.9,2.9315]
[1659292413569,4.6132182,1695.5,1693.9,0.4412]
[1659292413806,2.67630291,1696.1,1694.1,0.294894]
[1659292413807,0.05,1695.2,1694.1,0.294894]
[1659292413963,0.05,1695.2,1694.0,1.47447]
[1659292414143,0.05,1695.0,1694.0,1.47447]
[1659292414343,0.05,1694.9,1694.1,0.73602]
[1659292414656,0.05,1694.9,1694.2,0.04999999]
[1659292414859,0.05,1695.0,1694.4,1.7689448]
[1659292415063,0.05,1695.2,1694.5,2.70184448]
[1659292415290,0.05,1695.3,1694.5,2.75184447]
[1659292415450,0.05,1695.4,1694.8,7.5]
[1659292415650,0.05,1695.5,1694.9,7.5]
[1659292415847,4.6132182,1696.6,1696.3,1.4764901]
[1659292416075,3.79907576,1696.6,1696.3,0.0004901]
[1659292416248,4.5632182,1696.4,1696.3,0.0004901]
[1659292416661,4.86229396,1696.4,1696.3,0.0004901]
[1659292416882,0.29907576,1696.4,1696.3,0.0004901]
[1659292417083,8.36229396,1696.4,1696.3,0.0004901]
[1659292417287,16.92997463,1696.4,1696.3,0.0004901]
[1659292417447,16.92997463,1696.4,1694.3,0.29478]
[1659292417448,8.73230697,1695.9,1694.4,2.85826389]
[1659292417646,4.5632182,1695.4,1694.4,2.85826389]
[1659292417899,0.05,1695.4,1694.4,2.85826389]
[1659292418063,0.3,1695.0,1694.4,10.35826389]
[1659292418269,0.59907576,1695.0,1694.5,0.05342486]
[1659292418466,5.16229396,1695.0,1694.5,0.05342486]
[1659292418701,3.49712248,1695.0,1694.2,2.67095446]
[1659292418858,3.49712248,1695.0,1694.3,0.05342527]
[1659292418859,2.89804672,1694.9,1694.3,0.05342527]
[1659292419062,0.59907576,1695.0,1693.7,6.30674859]
[1659292419063,0.64907576,1695.0,1693.7,6.30674859]
[1659292419260,0.59907576,1695.0,1694.2,8.0]
[1659292419489,0.2949,1696.1,1694.7,2.84315007]
[1659292419490,5.75646961,1695.5,1694.7,2.84315007]
[1659292419660,4.5632182,1696.0,1694.5,0.4411]
[1659292419860,2.62939375,1696.6,1695.1,8.9663269]
[1659292420168,1.29325141,1696.8,1695.2,6.20674859]
[1659292420402,5.85646961,1696.5,1695.5,3.36607396]
[1659292420584,3.5,1697.1,1695.6,4.0354354]
[1659292420585,4.5632182,1697.0,1695.6,4.0354354]
[1659292420786,8.0,1696.9,1694.6,0.58933]
[1659292421095,2.7202674,1696.3,1694.6,0.29532055]
[1659292421276,0.05,1695.9,1694.4,0.5784]
[1659292421463,4.6132182,1695.9,1695.1,1.47346]
[1659292421665,0.29907576,1695.8,1695.2,0.05635052]
[1659292421878,4.5632182,1695.7,1694.2,3.31607968]
[1659292422085,0.05,1695.5,1694.2,3.31607968]
[1659292422314,2.6891471,1696.3,1694.2,3.31607968]
[1659292422315,0.05,1695.4,1694.2,3.31607968]
[1659292422537,0.05,1695.3,1694.5,4.99975]
[1659292422712,0.05,1695.4,1694.6,9.05635277]
[1659292422910,0.05,1695.4,1694.6,7.88805277]
[1659292423111,0.05,1695.4,1694.6,9.36192277]
[1659292423926,1.19325141,1696.5,1695.2,6.30674859]
[1659292424136,0.38780663,1697.0,1695.4,0.05]
[1659292424292,0.38780663,1697.0,1695.3,0.3]
[1659292424293,0.38780663,1697.0,1695.7,0.6445861]
[1659292424497,0.38780663,1697.0,1695.9,0.05]
[1659292424687,2.6943521,1697.6,1696.0,0.05]
[1659292424889,0.03622997,1696.9,1696.3,0.05]
[1659292425088,0.05,1697.2,1696.5,8.0]
[1659292425310,0.05,1697.3,1697.0,2.89804672]
[1659292425489,0.05,1697.6,1697.2,2.89804672]
[1659292425728,0.05,1697.6,1697.1,3.6]
[1659292425729,0.05,1697.9,1697.5,3.49804672]
[1659292425889,0.3,1698.0,1697.5,3.49804672]
[1659292425890,0.3,1698.0,1697.6,2.89804672]
[1659292426090,2.70815316,1699.0,1697.9,10.89804672]
[1659292426319,2.70815316,1699.0,1697.5,0.3]
[1659292426320,2.70815316,1699.0,1698.0,3.35]
[1659292426488,2.70815316,1699.0,1697.4,6.3245]
[1659292426489,0.2,1698.4,1697.4,0.69442059]
[1659292426689,6.138,1698.6,1698.0,0.56772418]
[1659292426908,2.79088649,1697.8,1696.1,0.4407]
[1659292427132,2.7021373,1698.0,1696.7,0.2944639]
[1659292427443,1.24325141,1698.3,1696.8,1.47207]
[1659292427651,1.24325141,1698.5,1697.2,0.2943183]
[1659292427933,11.1294,1699.4,1697.5,1.47145]
[1659292427934,1.24325141,1698.6,1697.5,1.47145]
[1659292428135,2.77519637,1699.1,1697.5,1.47145]
[1659292428136,1.24325141,1698.4,1697.6,0.3442929]
[1659292428291,0.79552853,1698.3,1697.5,0.05]
[1659292428491,1.24325141,1698.1,1697.4,0.05]
[1659292428690,1.24325141,1698.1,1696.2,1.019]
[1659292428691,1.28460141,1698.1,1697.5,0.59924647]
[1659292428921,1.28460141,1698.1,1697.5,0.89924647]
[1659292429127,0.04135,1698.1,1697.5,1.19924647]
[1659292429495,0.04135,1698.1,1697.5,2.67053647]
[1659292429698,0.05,1698.2,1697.6,6.2942699]
[1659292429964,0.05,1698.4,1697.6,3.2942699]
[1659292430352,0.05,1698.4,1697.8,1.47113]
[1659292430353,1.29325141,1698.4,1697.8,1.47113]
[1659292430532,0.05,1698.5,1697.8,2.07113]
[1659292430731,0.05,1698.5,1697.8,3.6]
[1659292430732,1.24325141,1698.1,1697.8,3.6]
[1659292430933,1.21897972,1697.9,1697.7,0.3]
[1659292431186,1.26897972,1698.3,1697.5,0.59924647]
[1659292431379,4.5632182,1698.2,1697.5,0.59924647]
[1659292431558,0.05,1698.3,1697.5,0.59924647]
[1659292431779,11.76718,1699.3,1697.5,0.59924647]
[1659292431780,4.5632182,1699.0,1697.7,8.0]
[1659292431932,10.48375065,1699.1,1697.9,0.05]
[1659292432137,4.5632182,1698.1,1698.0,0.05]
[1659292432332,5.78219792,1698.1,1697.8,0.03740516]
[1659292432539,5.78219792,1697.9,1697.8,0.03740516]
[1659292432763,5.78219792,1697.9,1697.4,0.05]
[1659292432981,5.78219792,1697.9,1697.3,0.59940957]
[1659292433133,5.78219792,1697.9,1697.8,0.03719466]
[1659292433333,5.78219792,1697.9,1697.8,0.00019466]
[1659292433583,5.78219792,1697.9,1697.4,0.05]
[1659292433584,8.45645432,1697.9,1697.4,0.05]
[1659292433792,5.78219792,1697.5,1697.2,0.05]
[1659292433951,1.21897972,1697.3,1696.9,0.05]
[1659292434146,0.35542853,1697.5,1696.6,0.64935856]
[1659292434147,0.40542853,1697.5,1696.6,0.64935856]
[1659292434377,4.5632182,1697.0,1696.6,0.05]
[1659292434583,4.5632182,1697.0,1696.3,0.05]
[1659292434781,4.5632182,1697.0,1696.2,0.64946396]
[1659292434782,5.78219792,1697.0,1696.2,0.64946396]
[1659292434988,0.05,1697.0,1696.2,4.39400036]
[1659292435188,0.05,1697.0,1696.4,3.5]
[1659292435388,0.05,1697.2,1696.4,3.5]
[1659292435560,0.05,1697.3,1696.4,3.5]
[1659292435763,0.05,1697.3,1696.4,3.55]
[1659292435959,0.05,1697.3,1696.6,0.11776]
[1659292436162,5.78219792,1697.6,1696.6,0.71776]
[1659292436163,0.05,1697.4,1696.6,0.71776]
[1659292436384,0.05,1697.4,1696.7,3.5]
[1659292436595,0.44279,1698.9,1697.3,14.5]
[1659292436749,0.6398,1699.5,1698.1,3.25983838]
[1659292436948,0.6398,1699.5,1698.3,0.05]
[1659292436949,0.2,1699.2,1698.3,0.05]
[1659292437147,7.5,1699.5,1698.3,0.05]
[1659292437388,10.0,1700.1,1698.4,0.05]
[1659292437389,0.4398,1699.4,1698.4,0.05]
[1659292437622,0.4397,1699.7,1698.4,0.05]
[1659292437828,0.4397,1699.9,1698.6,2.6067673]
[1659292438023,7.9397,1699.9,1698.8,0.05]
[1659292438178,0.4397,1699.9,1698.9,0.05]
[1659292438377,0.3,1701.0,1699.7,2.84196335]
[1659292438576,11.762,1700.9,1699.9,0.05]
[1659292438801,0.4394,1700.8,1699.9,0.05]
[1659292439005,0.6394,1700.8,1699.9,0.05]
[1659292439201,11.962,1700.9,1699.9,0.05]
[1659292439202,12.2014,1700.9,1699.9,0.05]
[1659292439497,18.2894,1700.9,1699.9,0.05]
[1659292439730,12.2014,1700.9,1699.9,0.05]
[1659292440042,12.2014,1700.9,1699.9,2.94804672]
[1659292440320,11.762,1700.9,1700.1,3.60711519]
[1659292440488,11.762,1700.9,1700.2,3.3]
[1659292440687,11.712,1700.9,1700.3,2.89804672]
[1659292440887,11.712,1700.9,1700.4,3.6]
[1659292441127,11.712,1700.9,1700.4,3.3]
[1659292441364,12.1514,1700.9,1700.5,3.0]
[1659292441568,11.712,1700.9,1700.2,3.05]
[1659292441766,0.7394,1701.0,1700.3,11.3]
[1659292441767,0.35,1701.0,1700.3,11.3]
[1659292441930,0.3,1701.0,1700.4,0.3]
[1659292442130,0.3,1701.0,1700.4,3.3]
[1659292442335,0.3,1701.0,1700.5,0.2937976]